fUSD/lending_fUSD_20250222
["ID","MTS","AMOUNT","RATE_DAILY","PERIOD"]
[354022614,1740183060849,-1475.55,0.00011611,2]
[354022615,1740183060858,-500.0,0.00011611,2]
[354022616,1740183060867,-500.0,0.00011611,2]
[354022617,1740183060876,-426.12241556,0.00011611,2]
[354022618,1740183060889,-396.77758444,0.00011611,2]
[354022619,1740183060899,-500.0,0.00011611,2]
[354022620,1740183060908,-1076.85,0.00011611,2]
[354022621,1740183060917,-500.0,0.00011611,2]
[354022622,1740183060926,-500.0,0.00011611,2]
[354022623,1740183060936,-500.0,0.00011611,2]
[354022624,1740183060945,-92.18901095,0.00011611,2]
[354022625,1740183060957,-1674.59098905,0.00011611,2]
[354022626,1740183060967,-3156.85,0.00011611,2]
[354022627,1740183060977,-500.0,0.00011611,2]
[354022628,1740183060986,-500.0,0.00011611,2]
[354022629,1740183060996,-732.58,0.00011611,2]
[354022630,1740183061009,-500.0,0.00011611,2]
[354022631,1740183061018,-500.0,0.00011611,2]
[354022632,1740183061027,-676.08,0.00011611,2]
[354022633,1740183061036,-500.0,0.00011613,2]
[354022634,1740183061048,-500.0,0.00011613,2]
[354022635,1740183061056,-500.0,0.00011613,2]
[354022636,1740183061065,-500.0,0.00011613,2]
[354022637,1740183061076,-500.0,0.00011613,2]
[354022638,1740183061088,-500.0,0.00011613,2]
[354022639,1740183061098,-500.0,0.00011613,2]
[354022640,1740183061107,-500.0,0.00011613,2]
[354022641,1740183061117,-500.0,0.00011613,2]
[354022642,1740183061126,-500.0,0.00011613,2]
[354022643,1740183061136,-500.0,0.00011613,2]
[354022644,1740183061145,-500.0,0.00011613,2]
[354022645,1740183061154,-500.0,0.00011613,2]
[354022646,1740183061163,-500.0,0.00011613,2]
[354022647,1740183061174,-681.97,0.00011613,2]
[354022648,1740183061183,-500.0,0.00011613,2]
[354022649,1740183061193,-500.0,0.00011613,2]
[354022650,1740183061202,-500.0,0.00011613,2]
[354022651,1740183061211,-500.0,0.00011613,2]
[354022652,1740183061220,-500.0,0.00011613,2]
[354022653,1740183061229,-500.0,0.00011613,2]
[354022654,1740183061238,-500.0,0.00011613,2]
[354022655,1740183061247,-500.0,0.00011613,2]
[354022656,1740183061256,-500.0,0.00011613,2]
[354022657,1740183061265,-228.48,0.00011613,2]
[354022658,1740183061275,-500.0,0.00011615,2]
[354022659,1740183061284,-500.0,0.00011615,2]
[354022660,1740183061293,-500.0,0.00011615,2]
[354022661,1740183061302,-500.0,0.00011615,2]
[354022662,1740183061311,-500.0,0.00011615,2]
[354022663,1740183061321,-500.0,0.00011615,2]
[354022664,1740183061330,-500.0,0.00011615,2]
[354022665,1740183061340,-500.0,0.00011615,2]
[354022666,1740183061349,-500.0,0.00011615,2]
[354022667,1740183061359,-500.0,0.00011615,2]
[354022668,1740183061368,-249.68,0.00011615,2]
[354022669,1740183061378,-310.75,0.00011615,2]
[354022670,1740183061388,-597.65,0.00011615,2]
[354022671,1740183061397,-500.0,0.00011615,2]
[354022672,1740183061407,-500.0,0.00011615,2]
[354022673,1740183061416,-500.0,0.00011615,2]
[354022674,1740183061425,-500.0,0.00011615,2]
[354022675,1740183061435,-500.0,0.00011615,2]
[354022676,1740183061444,-925.32,0.00011615,2]
[354022677,1740183061454,-500.0,0.00011615,2]
[354022678,1740183061464,-500.0,0.00011615,2]
[354022679,1740183061474,-981.73,0.00011615,2]
[354022680,1740183061483,-1225.91,0.00011615,2]
[354022681,1740183061493,-1000.0,0.00011615,2]
[354022682,1740183061503,-1219.38,0.00011615,2]
[354022683,1740183061513,-500.0,0.00011615,2]
[354022684,1740183061523,-1112.17,0.00011615,2]
[354022685,1740183061533,-1281.07,0.00011615,2]
[354022686,1740183061543,-500.0,0.00011615,2]
[354022687,1740183061554,-534.97,0.00011615,2]
[354022688,1740183061564,-1531.07,0.00011615,2]
[354022689,1740183061574,-158.97787741,0.00011617,2]
[354022690,1740183061583,-500.0,0.00011624,2]
[354022691,1740183061593,-303.52676735,0.00011633,2]
[354022692,1740183061603,-500.0,0.00011692,2]
[354022693,1740183061612,-270.553652,0.00011692,2]
[354022694,1740183061621,-500.0,0.00011692,2]
[354022695,1740183061631,-1851.02,0.00011692,2]
[354022696,1740183061640,-500.0,0.00011692,2]
[354022697,1740183061650,-659.88,0.00011692,2]
[354022698,1740183061659,-500.0,0.00011692,2]
[354022699,1740183061669,-500.0,0.00011692,2]
[354022700,1740183061678,-500.0,0.00011692,2]
[354022701,1740183061687,-319.961925,0.00011692,2]
[354022702,1740183061696,-500.0,0.00011692,2]
[354022703,1740183061706,-674.0,0.00011692,2]
[354022704,1740183061717,-704.65,0.00011692,2]
[354022705,1740183061726,-662.23,0.00011692,2]
[354022706,1740183061736,-847.59,0.00011692,2]
[354022707,1740183061746,-780.91,0.00011692,2]
[354022708,1740183061755,-1102.75,0.00011692,2]
[354022709,1740183061765,-500.0,0.00011692,2]
[354022710,1740183061774,-546.67,0.00011692,2]
[354022711,1740183061784,-804.86,0.00011692,2]
[354022712,1740183061794,-1329.87,0.00011692,2]
[354022713,1740183061804,-656.74,0.00011692,2]
[354022714,1740183061814,-500.0,0.00011692,2]
[354022715,1740183061824,-1147.29,0.00011692,2]
[354022716,1740183061834,-901.63,0.00011692,2]
[354022717,1740183061843,-872.87,0.00011692,2]
[354022718,1740183061853,-500.0,0.00011692,2]
[354022719,1740183061862,-1312.42,0.00011692,2]
[354022720,1740183061872,-500.0,0.00011692,2]
[354022721,1740183061882,-2825.2,0.00011692,2]
[354022722,1740183061892,-793.93,0.00011692,2]
[354022723,1740183061902,-500.0,0.00011692,2]
[354022724,1740183061913,-500.0,0.00011692,2]
[354022725,1740183061923,-500.0,0.00011692,2]
[354022726,1740183061933,-500.0,0.00011692,2]
[354022727,1740183061943,-972.62,0.00011692,2]
[354022728,1740183061953,-500.0,0.00011692,2]
[354022729,1740183061966,-1570.12,0.00011692,2]
[354022730,1740183061977,-881.42,0.00011692,2]
[354022731,1740183061991,-1689.55,0.00011692,2]
[354022732,1740183062002,-1867.77,0.00011692,2]
[354022733,1740183062020,-918.01,0.00011692,2]
[354022734,1740183062032,-500.0,0.00011692,2]
[354022735,1740183062042,-1105.42,0.00011692,2]
[354022736,1740183062054,-904.45,0.00011692,2]
[354022737,1740183062063,-1060.54,0.00011692,2]
[354022738,1740183062073,-1773.75,0.00011692,2]
[354022739,1740183062084,-500.0,0.00011692,2]
[354022740,1740183062095,-500.0,0.00011692,2]
[354022741,1740183062106,-670.78,0.00011692,2]
[354022742,1740183062117,-500.0,0.00011692,2]
[354022743,1740183062126,-500.0,0.00011692,2]
[354022744,1740183062136,-1166.03,0.00011692,2]
[354022745,1740183062148,-697.16,0.00011692,2]
[354022746,1740183062157,-500.0,0.00011692,2]
[354022747,1740183062167,-607.72,0.00011692,2]
[354022748,1740183062177,-500.0,0.00011692,2]
[354022749,1740183062187,-500.0,0.00011692,2]
[354022750,1740183062199,-618.06,0.00011692,2]
[354022751,1740183062209,-500.0,0.00011693,2]
[354022752,1740183062218,-500.0,0.00011693,2]
[354022753,1740183062228,-500.0,0.00011693,2]
[354022754,1740183062238,-500.0,0.00011693,2]
[354022755,1740183062248,-500.0,0.00011693,2]
[354022756,1740183062258,-500.0,0.00011693,2]
[354022757,1740183062267,-500.0,0.00011693,2]
[354022758,1740183062276,-500.0,0.00011693,2]
[354022759,1740183062286,-500.0,0.00011693,2]
[354022760,1740183062296,-500.0,0.00011693,2]
[354022761,1740183062306,-500.0,0.00011693,2]
[354022762,1740183062316,-500.0,0.00011693,2]
[354022763,1740183062325,-500.0,0.00011693,2]
[354022764,1740183062335,-500.0,0.00011693,2]
[354022765,1740183062346,-500.0,0.00011693,2]
[354022766,1740183062355,-500.0,0.00011693,2]
[354022767,1740183062365,-500.0,0.00011693,2]
[354022768,1740183062375,-500.0,0.00011693,2]
[354022769,1740183062384,-528.77,0.00011693,2]
[354022770,1740183062393,-500.0,0.00011693,2]
[354022771,1740183062402,-500.0,0.00011693,2]
[354022772,1740183062412,-500.0,0.00011693,2]
[354022773,1740183062421,-500.0,0.00011693,2]
[354022774,1740183062431,-500.0,0.00011693,2]
[354022775,1740183062440,-500.0,0.00011693,2]
[354022776,1740183062449,-500.0,0.00011693,2]
[354022777,1740183062459,-500.0,0.00011693,2]
[354022778,1740183062469,-500.0,0.00011693,2]
[354022779,1740183062478,-305.57729706,0.00011693,2]
[354022780,1740183062487,-500.0,0.00011693,2]
[354022781,1740183062497,-500.0,0.00011693,2]
[354022782,1740183062506,-500.0,0.00011693,2]
[354022783,1740183062516,-500.0,0.00011693,2]
[354022784,1740183062527,-500.0,0.00011693,2]
[354022785,1740183062536,-500.0,0.00011693,2]
[354022786,1740183062546,-500.0,0.00011693,2]
[354022787,1740183062555,-500.0,0.00011693,2]
[354022788,1740183062565,-500.0,0.00011693,2]
[354022789,1740183062574,-500.0,0.00011693,2]
[354022790,1740183062584,-500.0,0.00011693,2]
[354022791,1740183062594,-500.0,0.00011693,2]
[354022792,1740183062604,-500.0,0.00011693,2]
[354022793,1740183062613,-500.0,0.00011693,2]
[354022794,1740183062623,-500.0,0.00011693,2]
[354022795,1740183062632,-500.0,0.00011693,2]
[354022796,1740183062641,-500.0,0.00011693,2]
[354022797,1740183062651,-368.1,0.00011693,2]
[354022798,1740183062660,-500.0,0.00011693,2]
[354022799,1740183062670,-500.0,0.00011693,2]
[354022800,1740183062679,-354.36,0.00011693,2]
[354022801,1740183062689,-500.0,0.00011693,2]
[354022802,1740183062698,-500.0,0.00011693,2]
[354022803,1740183062708,-500.0,0.00011693,2]
[354022804,1740183062718,-500.0,0.00011693,2]
[354022805,1740183062728,-500.0,0.00011693,2]
[354022806,1740183062738,-500.0,0.00011693,2]
[354022807,1740183062748,-211.73405549,0.00011693,2]
[354022808,1740183062758,-500.0,0.00011693,2]
[354022809,1740183062768,-500.0,0.00011693,2]
[354022810,1740183062778,-500.0,0.00011693,2]
[354022811,1740183062788,-500.0,0.00011693,2]
[354022812,1740183062798,-500.0,0.00011693,2]
[354022813,1740183062808,-500.0,0.00011693,2]
[354022814,1740183062818,-500.0,0.00011693,2]
[354022815,1740183062828,-500.0,0.00011693,2]
[354022816,1740183062837,-500.0,0.00011693,2]
[354022817,1740183062847,-500.0,0.00011693,2]
[354022818,1740183062856,-584.8,0.00011693,2]
[354022819,1740183062866,-500.0,0.00011693,2]
[354022820,1740183062875,-500.0,0.00011693,2]
[354022821,1740183062885,-500.0,0.00011693,2]
[354022822,1740183062895,-500.0,0.00011693,2]
[354022823,1740183062905,-500.0,0.00011693,2]
[354022824,1740183062916,-500.0,0.00011693,2]
[354022825,1740183062926,-500.0,0.00011693,2]
[354022826,1740183062936,-500.0,0.00011693,2]
[354022827,1740183062946,-500.0,0.00011693,2]
[354022828,1740183062955,-500.0,0.00011693,2]
[354022829,1740183062965,-500.0,0.00011693,2]
[354022830,1740183062976,-394.82,0.00011693,2]
[354022831,1740183062986,-500.0,0.00011693,2]
[354022832,1740183062997,-500.0,0.00011693,2]
[354022833,1740183063007,-500.0,0.00011693,2]
[354022834,1740183063020,-500.0,0.00011693,2]
[354022835,1740183063030,-500.0,0.00011693,2]
[354022836,1740183063040,-500.0,0.00011693,2]
[354022837,1740183063051,-538.8,0.00011693,2]
[354022838,1740183063062,-672.25,0.00011693,2]
[354022839,1740183063072,-500.0,0.00011693,2]
[354022840,1740183063082,-500.0,0.00011693,2]
[354022841,1740183063094,-500.0,0.00011693,2]
[354022842,1740183063104,-329.34,0.00011693,2]
[354022843,1740183063115,-604.62,0.00011693,2]
[354022844,1740183063125,-914.39,0.00011693,2]
[354022845,1740183063136,-740.85,0.00011693,2]
[354022846,1740183063146,-500.0,0.00011693,2]
[354022847,1740183063156,-500.0,0.00011693,2]
[354022848,1740183063167,-746.87,0.00011693,2]
[354022849,1740183063177,-500.0,0.00011693,2]
[354022850,1740183063187,-500.0,0.00011693,2]
[354022851,1740183063198,-500.0,0.00011693,2]
[354022852,1740183063208,-695.9,0.00011693,2]
[354022853,1740183063217,-500.0,0.00011693,2]
[354022854,1740183063228,-500.0,0.00011693,2]
[354022855,1740183063238,-500.0,0.00011693,2]
[354022856,1740183063249,-500.0,0.00011693,2]
[354022857,1740183063259,-500.0,0.00011693,2]
[354022858,1740183063270,-1020.33,0.00011693,2]
[354022859,1740183063281,-500.0,0.00011693,2]
[354022860,1740183063292,-500.0,0.00011693,2]
[354022861,1740183063302,-500.0,0.00011693,2]
[354022862,1740183063312,-507.16,0.00011693,2]
[354022863,1740183063323,-500.0,0.00011693,2]
[354022864,1740183063333,-500.0,0.00011693,2]
[354022865,1740183063344,-795.59,0.00011693,2]
[354022866,1740183063354,-500.0,0.00011693,2]
[354022867,1740183063364,-669.24,0.00011693,2]
[354022868,1740183063374,-534.94755583,0.00011693,2]
[354022869,1740183063385,-500.0,0.00011693,2]
[354022870,1740183063396,-500.0,0.00011693,2]
[354022871,1740183063406,-500.0,0.00011693,2]
[354022872,1740183063417,-1119.15,0.00011693,2]
[354022873,1740183063427,-500.0,0.00011693,2]
[354022874,1740183063438,-500.0,0.00011693,2]
[354022875,1740183063449,-543.65,0.00011693,2]
[354022876,1740183063459,-500.0,0.00011693,2]
[354022877,1740183063469,-500.0,0.00011693,2]
[354022878,1740183063480,-500.0,0.00011693,2]
[354022879,1740183063490,-500.0,0.00011693,2]
[354022880,1740183063501,-500.0,0.00011693,2]
[354022881,1740183063512,-277.74,0.00011693,2]
[354022882,1740183063523,-696.77,0.00011693,2]
[354022883,1740183063533,-515.61,0.00011693,2]
[354022884,1740183063544,-500.0,0.00011693,2]
[354022885,1740183063554,-500.0,0.00011693,2]
[354022886,1740183063564,-500.0,0.00011693,2]
[354022887,1740183063574,-500.0,0.00011693,2]
[354022888,1740183063585,-680.03,0.00011693,2]
[354022889,1740183063596,-500.0,0.00011693,2]
[354022890,1740183063607,-500.0,0.00011693,2]
[354022891,1740183063617,-1539.36,0.00011693,2]
[354022892,1740183063628,-500.0,0.00011693,2]
[354022893,1740183063639,-500.0,0.00011693,2]
[354022894,1740183063650,-500.0,0.00011693,2]
[354022895,1740183063660,-500.0,0.00011693,2]
[354022896,1740183063670,-500.0,0.00011693,2]
[354022897,1740183063682,-1475.55,0.00011693,2]
[354022898,1740183063693,-500.0,0.00011693,2]
[354022899,1740183063704,-500.0,0.00011693,2]
[354022900,1740183063718,-822.9,0.00011693,2]
[354022901,1740183063728,-500.0,0.00011693,2]
[354022902,1740183063739,-1076.85,0.00011693,2]
[354022903,1740183063750,-500.0,0.00011693,2]
[354022904,1740183063761,-500.0,0.00011693,2]
[354022905,1740183063772,-500.0,0.00011693,2]
[354022906,1740183063783,-1766.78,0.00011693,2]
[354022907,1740183063794,-3156.85,0.00011693,2]
[354022908,1740183063804,-500.0,0.00011693,2]
[354022909,1740183063815,-500.0,0.00011693,2]
[354022910,1740183063826,-732.58,0.00011693,2]
[354022911,1740183063837,-500.0,0.00011693,2]
[354022912,1740183063847,-500.0,0.00011693,2]
[354022913,1740183063857,-676.08,0.00011693,2]
[354022914,1740183063867,-500.0,0.00011695,2]
[354022915,1740183063877,-500.0,0.00011695,2]
[354022916,1740183063887,-500.0,0.00011695,2]
[354022917,1740183063897,-500.0,0.00011695,2]
[354022918,1740183063907,-500.0,0.00011695,2]
[354022919,1740183063917,-500.0,0.00011695,2]
[354022920,1740183063927,-500.0,0.00011695,2]
[354022921,1740183063938,-500.0,0.00011695,2]
[354022922,1740183063947,-500.0,0.00011695,2]
[354022923,1740183063958,-500.0,0.00011695,2]
[354022924,1740183063968,-500.0,0.00011695,2]
[354022925,1740183063978,-500.0,0.00011695,2]
[354022926,1740183063989,-500.0,0.00011695,2]
[354022927,1740183064000,-681.97,0.00011695,2]
[354022928,1740183064013,-500.0,0.00011695,2]
[354022929,1740183064023,-500.0,0.00011695,2]
[354022930,1740183064032,-500.0,0.00011695,2]
[354022931,1740183064043,-500.0,0.00011695,2]
[354022932,1740183064054,-500.0,0.00011695,2]
[354022933,1740183064064,-500.0,0.00011695,2]
[354022934,1740183064075,-500.0,0.00011695,2]
[354022935,1740183064085,-500.0,0.00011695,2]
[354022936,1740183064098,-500.0,0.00011695,2]
[354022937,1740183064311,-925.32,0.00011697,2]
[354022938,1740183064323,-500.0,0.00011697,2]
[354022939,1740183064334,-500.0,0.00011697,2]
[354022940,1740183064344,-981.73,0.00011697,2]
[354022941,1740183064356,-1225.91,0.00011697,2]
[354022942,1740183064366,-1000.0,0.00011697,2]
[354022943,1740183064376,-1219.38,0.00011697,2]
[354022944,1740183064386,-500.0,0.00011697,2]
[354022945,1740183064396,-1112.17,0.00011697,2]
[354022946,1740183064406,-1281.07,0.00011697,2]
[354022947,1740183064416,-500.0,0.00011697,2]
[354022948,1740183064428,-534.97,0.00011697,2]
[354022949,1740183064440,-1531.07,0.00011697,2]
[354022950,1740183064452,-500.0,0.00011698,2]
[354022951,1740183064462,-500.0,0.00011698,2]
[354022952,1740183064473,-500.0,0.00011698,2]
[354022953,1740183064483,-500.0,0.00011698,2]
[354022954,1740183064492,-500.0,0.00011698,2]
[354022955,1740183064502,-500.0,0.00011698,2]
[354022956,1740183064513,-500.0,0.00011698,2]
[354022957,1740183064523,-500.0,0.00011698,2]
[354022958,1740183064533,-500.0,0.00011698,2]
[354022959,1740183064543,-500.0,0.00011698,2]
[354022960,1740183064553,-400.06733619,0.00011698,2]
[354022961,1740183064562,-413.4,0.00011698,2]
[354022962,1740183064572,-443.1,0.00011698,2]
[354022963,1740183064583,-2100.0,0.000117,4]
[354022964,1740183064593,-500.0,0.00011734,2]
[354022965,1740183064604,-250.0,0.0001177,2]
[354022966,1740183064614,-500.0,0.00011775,2]
[354022967,1740183064624,-270.553652,0.00011775,2]
[354022968,1740183064635,-500.0,0.00011775,2]
[354022969,1740183064645,-1851.02,0.00011775,2]
[354022970,1740183064654,-500.0,0.00011775,2]
[354022971,1740183064664,-659.88,0.00011775,2]
[354022972,1740183064674,-500.0,0.00011775,2]
[354022973,1740183064684,-500.0,0.00011775,2]
[354022974,1740183064695,-500.0,0.00011775,2]
[354022975,1740183064705,-319.961925,0.00011775,2]
[354022976,1740183064714,-500.0,0.00011775,2]
[354022977,1740183064725,-674.0,0.00011775,2]
[354022978,1740183064735,-704.65,0.00011775,2]
[354022979,1740183064745,-662.23,0.00011775,2]
[354022980,1740183064755,-847.59,0.00011775,2]
[354022981,1740183064765,-780.91,0.00011775,2]
[354022982,1740183064775,-1102.75,0.00011775,2]
[354022983,1740183064785,-500.0,0.00011775,2]
[354022984,1740183064795,-546.67,0.00011775,2]
[354022985,1740183064804,-804.86,0.00011775,2]
[354022986,1740183064814,-1329.87,0.00011775,2]
[354022987,1740183064824,-656.74,0.00011775,2]
[354022988,1740183064834,-500.0,0.00011775,2]
[354022989,1740183064844,-1147.29,0.00011775,2]
[354022990,1740183064854,-901.63,0.00011775,2]
[354022991,1740183064866,-872.87,0.00011775,2]
[354022992,1740183064876,-500.0,0.00011775,2]
[354022993,1740183064886,-1312.42,0.00011775,2]
[354022994,1740183064895,-500.0,0.00011775,2]
[354022995,1740183064904,-2825.2,0.00011775,2]
[354022996,1740183064915,-793.93,0.00011775,2]
[354022997,1740183064926,-500.0,0.00011775,2]
[354022998,1740183064936,-500.0,0.00011775,2]
[354022999,1740183064946,-500.0,0.00011775,2]
[354023000,1740183064956,-500.0,0.00011775,2]
[354023001,1740183064966,-972.62,0.00011775,2]
[354023002,1740183064975,-500.0,0.00011775,2]
[354023003,1740183064985,-1570.12,0.00011775,2]
[354023004,1740183064995,-881.42,0.00011775,2]
[354023005,1740183065005,-1689.55,0.00011775,2]
[354023006,1740183065020,-1867.77,0.00011775,2]
[354023007,1740183065029,-918.01,0.00011775,2]
[354023008,1740183065039,-500.0,0.00011775,2]
[354023009,1740183065049,-1105.42,0.00011775,2]
[354023010,1740183065059,-904.45,0.00011775,2]
[354023011,1740183065069,-1060.54,0.00011775,2]
[354023012,1740183065079,-1773.75,0.00011775,2]
[354023013,1740183065089,-500.0,0.00011775,2]
[354023014,1740183065099,-500.0,0.00011775,2]
[354023015,1740183065109,-670.78,0.00011775,2]
[354023016,1740183065119,-500.0,0.00011775,2]
[354023017,1740183065128,-500.0,0.00011775,2]
[354023018,1740183065138,-1166.03,0.00011775,2]
[354023019,1740183065148,-697.16,0.00011775,2]
[354023020,1740183065160,-500.0,0.00011775,2]
[354023021,1740183065170,-607.72,0.00011775,2]
[354023022,1740183065180,-500.0,0.00011775,2]
[354023023,1740183065190,-500.0,0.00011775,2]
[354023024,1740183065199,-618.06,0.00011775,2]
[354023025,1740183065209,-819021.40747032,0.00011776,3]
[354023026,1740183065219,-500.0,0.00011776,2]
[354023027,1740183065228,-500.0,0.00011776,2]
[354023028,1740183065238,-500.0,0.00011776,2]
[354023029,1740183065248,-500.0,0.00011776,2]
[354023030,1740183065258,-422.77866901,0.00011776,2]
[354023031,1740183065267,-500.0,0.00011776,2]
[354023032,1740183065277,-500.0,0.00011776,2]
[354023033,1740183065287,-500.0,0.00011776,2]
[354023034,1740183065296,-500.0,0.00011776,2]
[354023035,1740183065305,-500.0,0.00011776,2]
[354023036,1740183065315,-500.0,0.00011776,2]
[354023037,1740183065324,-500.0,0.00011776,2]
[354023038,1740183065334,-500.0,0.00011776,2]
[354023039,1740183065343,-500.0,0.00011776,2]
[354023040,1740183065353,-500.0,0.00011776,2]
[354023041,1740183065363,-500.0,0.00011776,2]
[354023042,1740183065372,-500.0,0.00011776,2]
[354023043,1740183065382,-517.37,0.00011776,2]
[354023044,1740183065391,-500.0,0.00011776,2]
[354023045,1740183065401,-500.0,0.00011776,2]
[354023046,1740183065411,-500.0,0.00011776,2]
[354023047,1740183065421,-500.0,0.00011776,2]
[354023048,1740183065430,-500.0,0.00011776,2]
[354023049,1740183065439,-500.0,0.00011776,2]
[354023050,1740183065449,-500.0,0.00011776,2]
[354023051,1740183065459,-500.0,0.00011776,2]
[354023052,1740183065468,-500.0,0.00011776,2]
[354023053,1740183065478,-500.0,0.00011776,2]
[354023054,1740183065487,-500.0,0.00011776,2]
[354023055,1740183065497,-500.0,0.00011776,2]
[354023056,1740183065506,-500.0,0.00011776,2]
[354023057,1740183065516,-500.0,0.00011776,2]
[354023058,1740183065526,-500.0,0.00011776,2]
[354023059,1740183065535,-500.0,0.00011776,2]
[354023060,1740183065545,-500.0,0.00011776,2]
[354023061,1740183065554,-500.0,0.00011776,2]
[354023062,1740183065564,-500.0,0.00011776,2]
[354023063,1740183065574,-500.0,0.00011776,2]
[354023064,1740183065584,-500.0,0.00011776,2]
[354023065,1740183065593,-558.53,0.00011776,2]
[354023066,1740183065603,-500.0,0.00011776,2]
[354023067,1740183065612,-500.0,0.00011776,2]
[354023068,1740183065623,-500.0,0.00011776,2]
[354023069,1740183065632,-500.0,0.00011776,2]
[354023070,1740183065641,-500.0,0.00011776,2]
[354023071,1740183065651,-500.0,0.00011776,2]
[354023072,1740183065660,-523.6,0.00011776,2]
[354023073,1740183065670,-500.0,0.00011776,2]
[354023074,1740183065679,-500.0,0.00011776,2]
[354023075,1740183065689,-500.0,0.00011776,2]
[354023076,1740183065699,-373.0,0.00011776,2]
[354023077,1740183065708,-500.0,0.00011776,2]
[354023078,1740183065720,-500.0,0.00011776,2]
[354023079,1740183065729,-605.74,0.00011776,2]
[354023080,1740183065739,-237.45,0.00011776,2]
[354023081,1740183065748,-572.56,0.00011776,2]
[354023082,1740183065758,-500.0,0.00011776,2]
[354023083,1740183065767,-500.0,0.00011776,2]
[354023084,1740183065777,-500.0,0.00011776,2]
[354023085,1740183065786,-500.0,0.00011776,2]
[354023086,1740183065796,-500.0,0.00011776,2]
[354023087,1740183065805,-500.0,0.00011776,2]
[354023088,1740183065815,-500.0,0.00011776,2]
[354023089,1740183065823,-500.0,0.00011776,2]
[354023090,1740183065833,-500.0,0.00011776,2]
[354023091,1740183065842,-500.0,0.00011776,2]
[354023092,1740183065852,-500.0,0.00011776,2]
[354023093,1740183065863,-199.39255281,0.00011776,2]
[354023094,1740183065872,-500.0,0.00011776,2]
[354023095,1740183065882,-500.0,0.00011776,2]
[354023096,1740183065891,-500.0,0.00011776,2]
[354023097,1740183065900,-500.0,0.00011776,2]
[354023098,1740183065910,-500.0,0.00011776,2]
[354023099,1740183065920,-500.0,0.00011776,2]
[354023100,1740183065929,-500.0,0.00011776,2]
[354023101,1740183065938,-500.0,0.00011776,2]
[354023102,1740183065948,-672.25,0.00011776,2]
[354023103,1740183065957,-500.0,0.00011776,2]
[354023104,1740183065967,-429.52,0.00011776,2]
[354023105,1740183065976,-500.0,0.00011776,2]
[354023106,1740183065985,-604.62,0.00011776,2]
[354023107,1740183065995,-914.39,0.00011776,2]
[354023108,1740183066005,-740.85,0.00011776,2]
[354023109,1740183066018,-500.0,0.00011776,2]
[354023110,1740183066028,-746.87,0.00011776,2]
[354023111,1740183066038,-500.0,0.00011776,2]
[354023112,1740183066047,-500.0,0.00011776,2]
[354023113,1740183066056,-500.0,0.00011776,2]